[Event "Titled Tuesday Blitz November 07 Late 2023"]
[White "Cooper, Aaron"]
[Black "Kovacsy, Barnabas"]
[WhiteFideId "2634945"]
[BlackFideId "769290"]
[WhiteElo "2257"]
[BlackElo "2465"]
[Result "0-1"]
[Round "2"]
[TimeControl "180+1"]
[Date "2023.11.07"]
[WhiteClock "0:00:00"]
[BlackClock "0:01:34"]
[Board "142"]

1. e4 {[%clk 0:03:00]}  c5 {[%clk 0:02:59]} 2. Nf3 {[%clk 0:03:00]}  e6 {[%clk 0:02:59]} 3. d4 {[%clk 0:03:00]}  cxd4 {[%clk 0:03:00]} 4. Nxd4 {[%clk 0:03:00]}  Nc6 {[%clk 0:03:01]} 5. Nc3 {[%clk 0:03:00]}  Qc7 {[%clk 0:03:00]} 6. Be2 {[%clk 0:02:54]}  a6 {[%clk 0:02:59]} 7. O-O {[%clk 0:02:54]}  Nf6 {[%clk 0:03:00]} 8. Be3 {[%clk 0:02:44]}  Bb4 {[%clk 0:03:00]} 9. Nxc6 {[%clk 0:02:40]}  bxc6 {[%clk 0:03:01]} 10. Qd4 {[%clk 0:02:39]}  c5 {[%clk 0:03:00]} 11. Qc4 {[%clk 0:02:38]}  Bb7 {[%clk 0:03:01]} 12. Bf3 {[%clk 0:02:12]}  O-O {[%clk 0:02:51]} 13. Rfe1 {[%clk 0:01:56]}  d5 {[%clk 0:02:43]} 14. exd5 {[%clk 0:01:53]}  exd5 {[%clk 0:02:43]} 15. Qf4 {[%clk 0:01:42]}  Qxf4 {[%clk 0:02:37]} 16. Bxf4 {[%clk 0:01:43]}  Rfe8 {[%clk 0:02:36]} 17. a3 {[%clk 0:01:37]}  Ba5 {[%clk 0:02:33]} 18. Rxe8+ {[%clk 0:01:26]}  Rxe8 {[%clk 0:02:32]} 19. Na4 {[%clk 0:01:27]}  c4 {[%clk 0:02:21]} 20. Nc5 {[%clk 0:01:22]}  Bc8 {[%clk 0:02:19]} 21. Rd1 {[%clk 0:01:18]}  Bb6 {[%clk 0:02:19]} 22. Na4 {[%clk 0:01:06]}  Ba7 {[%clk 0:02:14]} 23. Kf1 {[%clk 0:00:47]}  Bd7 {[%clk 0:02:08]} 24. Nc3 {[%clk 0:00:46]}  d4 {[%clk 0:02:08]} 25. Nd5 {[%clk 0:00:46]}  Nxd5 {[%clk 0:01:56]} 26. Bxd5 {[%clk 0:00:47]}  Bb5 {[%clk 0:01:55]} 27. Kg1 {[%clk 0:00:41]}  d3 {[%clk 0:01:51]} 28. cxd3 {[%clk 0:00:37]}  cxd3 {[%clk 0:01:51]} 29. b3 {[%clk 0:00:29]}  g5 {[%clk 0:01:36]} 30. Bg3 {[%clk 0:00:00]}  d2 {[%clk 0:01:34]} 0-1


[Site "https://www.chess.com"]

[Event "Titled Tuesday Blitz November 07 Late 2023"]
[White "Meduri, Aakaash"]
[Black "Gertler, David"]
[WhiteFideId "2032252"]
[BlackFideId "2017377"]
[WhiteElo "2464"]
[BlackElo "2257"]
[Result "1-0"]
[Round "2"]
[TimeControl "180+1"]
[Date "2023.11.07"]
[WhiteClock "0:02:03"]
[BlackClock "0:01:05"]
[Board "143"]

1. c4 {[%clk 0:03:00]}  Nf6 {[%clk 0:02:59]} 2. g3 {[%clk 0:03:00]}  e6 {[%clk 0:03:00]} 3. Bg2 {[%clk 0:03:00]}  d5 {[%clk 0:03:00]} 4. Nf3 {[%clk 0:02:58]}  dxc4 {[%clk 0:03:00]} 5. Qa4+ {[%clk 0:02:57]}  Bd7 {[%clk 0:03:00]} 6. Qxc4 {[%clk 0:02:57]}  Bc6 {[%clk 0:03:00]} 7. O-O {[%clk 0:02:57]}  Nbd7 {[%clk 0:03:01]} 8. b3 {[%clk 0:02:56]}  Be7 {[%clk 0:03:00]} 9. Bb2 {[%clk 0:02:56]}  O-O {[%clk 0:03:00]} 10. d3 {[%clk 0:02:55]}  Ne8 {[%clk 0:02:36]} 11. Nbd2 {[%clk 0:02:52]}  Nd6 {[%clk 0:02:26]} 12. Qc2 {[%clk 0:02:48]}  Bf6 {[%clk 0:02:26]} 13. d4 {[%clk 0:02:48]}  Qe7 {[%clk 0:02:19]} 14. e4 {[%clk 0:02:46]}  e5 {[%clk 0:02:12]} 15. d5 {[%clk 0:02:45]}  Bb5 {[%clk 0:02:12]} 16. Rfe1 {[%clk 0:02:44]}  Rfc8 {[%clk 0:02:08]} 17. a4 {[%clk 0:02:39]}  Ba6 {[%clk 0:02:08]} 18. Ba3 {[%clk 0:02:39]}  c5 {[%clk 0:02:00]} 19. Nc4 {[%clk 0:02:29]}  b5 {[%clk 0:01:50]} 20. Na5 {[%clk 0:02:21]}  b4 {[%clk 0:01:40]} 21. Nc6 {[%clk 0:02:20]}  Qe8 {[%clk 0:01:32]} 22. Bb2 {[%clk 0:02:19]}  Nb8 {[%clk 0:01:29]} 23. Ncxe5 {[%clk 0:02:16]}  c4 {[%clk 0:01:25]} 24. Nxc4 {[%clk 0:02:12]}  Bxb2 {[%clk 0:01:23]} 25. Qxb2 {[%clk 0:02:13]}  Nxc4 {[%clk 0:01:21]} 26. bxc4 {[%clk 0:02:13]}  Rxc4 {[%clk 0:01:18]} 27. e5 {[%clk 0:02:07]}  Bb7 {[%clk 0:01:08]} 28. Nd2 {[%clk 0:02:05]}  Rc8 {[%clk 0:01:05]} 29. Qxb4 {[%clk 0:02:03]} 1-0


[Site "https://www.chess.com"]

[Event "Titled Tuesday Blitz November 07 Late 2023"]
[White "Broca Jimenez, Fernando"]
[Black "victormago"]
[WhiteFideId "5104742"]
[WhiteElo "2250"]
[BlackElo "2462"]
[Result "0-1"]
[Round "2"]
[TimeControl "180+1"]
[Date "2023.11.07"]
[WhiteClock "0:00:00"]
[BlackClock "0:00:10"]
[Board "144"]

1. e4 {[%clk 0:03:00]}  c5 {[%clk 0:02:59]} 2. c3 {[%clk 0:03:00]}  d5 {[%clk 0:02:59]} 3. exd5 {[%clk 0:03:01]}  Qxd5 {[%clk 0:02:58]} 4. d4 {[%clk 0:03:02]}  g6 {[%clk 0:02:57]} 5. Nf3 {[%clk 0:03:02]}  Bg7 {[%clk 0:02:57]} 6. Be2 {[%clk 0:02:59]}  cxd4 {[%clk 0:02:53]} 7. Nxd4 {[%clk 0:02:57]}  Nf6 {[%clk 0:02:49]} 8. O-O {[%clk 0:02:55]}  O-O {[%clk 0:02:48]} 9. Bf3 {[%clk 0:02:53]}  Qa5 {[%clk 0:02:45]} 10. Nd2 {[%clk 0:02:51]}  a6 {[%clk 0:02:41]} 11. Nc4 {[%clk 0:02:40]}  Qc7 {[%clk 0:02:40]} 12. Qe2 {[%clk 0:02:32]}  e6 {[%clk 0:02:21]} 13. Bg5 {[%clk 0:02:27]}  Nbd7 {[%clk 0:02:09]} 14. Rad1 {[%clk 0:02:23]}  e5 {[%clk 0:01:52]} 15. Nb3 {[%clk 0:02:07]}  h6 {[%clk 0:01:34]} 16. Bh4 {[%clk 0:02:05]}  Re8 {[%clk 0:01:31]} 17. Nd6 {[%clk 0:01:59]}  Re6 {[%clk 0:01:26]} 18. Ne4 {[%clk 0:01:55]}  Nxe4 {[%clk 0:01:22]} 19. Bxe4 {[%clk 0:01:55]}  Nf6 {[%clk 0:01:19]} 20. Bxf6 {[%clk 0:01:40]}  Rxf6 {[%clk 0:01:14]} 21. Rd2 {[%clk 0:01:31]}  Rb6 {[%clk 0:01:12]} 22. Rfd1 {[%clk 0:01:29]}  Be6 {[%clk 0:01:12]} 23. Bd5 {[%clk 0:01:26]}  Rf8 {[%clk 0:00:48]} 24. Bxe6 {[%clk 0:01:16]}  Rxe6 {[%clk 0:00:47]} 25. Rd7 {[%clk 0:01:13]}  Qb6 {[%clk 0:00:47]} 26. Qe4 {[%clk 0:00:52]}  Rc6 {[%clk 0:00:46]} 27. h3 {[%clk 0:00:31]}  Rc7 {[%clk 0:00:45]} 28. Qd5 {[%clk 0:00:25]}  Rxd7 {[%clk 0:00:45]} 29. Qxd7 {[%clk 0:00:25]}  e4 {[%clk 0:00:29]} 30. Rd6 {[%clk 0:00:22]}  Qa7 {[%clk 0:00:29]} 31. Qe7 {[%clk 0:00:10]}  Qb8 {[%clk 0:00:22]} 32. Rd7 {[%clk 0:00:09]}  Qc8 {[%clk 0:00:19]} 33. Rxb7 {[%clk 0:00:08]}  Qf5 {[%clk 0:00:18]} 34. Rb4 {[%clk 0:00:06]}  Qh5 {[%clk 0:00:13]} 35. Rxe4 {[%clk 0:00:05]}  Qd1+ {[%clk 0:00:13]} 36. Re1 {[%clk 0:00:04]}  Qc2 {[%clk 0:00:14]} 37. Qe2 {[%clk 0:00:04]}  Qf5 {[%clk 0:00:13]} 38. Nd4 {[%clk 0:00:04]}  Qa5 {[%clk 0:00:13]} 39. Nf3 {[%clk 0:00:03]}  Qxa2 {[%clk 0:00:12]} 40. Rd1 {[%clk 0:00:03]}  a5 {[%clk 0:00:12]} 41. Rd7 {[%clk 0:00:03]}  a4 {[%clk 0:00:13]} 42. Ne5 {[%clk 0:00:00]}  a3 {[%clk 0:00:10]} 0-1


[Site "https://www.chess.com"]

[Event "Titled Tuesday Blitz November 07 Late 2023"]
[White "Jovic, Stanoje"]
[Black "Bazzano, Sebastian"]
[WhiteFideId "905020"]
[BlackFideId "104566"]
[WhiteElo "2454"]
[BlackElo "2239"]
[Result "1/2-1/2"]
[Round "2"]
[TimeControl "180+1"]
[Date "2023.11.07"]
[WhiteClock "0:00:34"]
[BlackClock "0:00:02"]
[Board "146"]

1. c4 {[%clk 0:03:00]}  Nf6 {[%clk 0:02:59]} 2. g3 {[%clk 0:03:00]}  g6 {[%clk 0:02:59]} 3. Bg2 {[%clk 0:03:00]}  Bg7 {[%clk 0:02:59]} 4. Nc3 {[%clk 0:03:01]}  c5 {[%clk 0:02:59]} 5. Nf3 {[%clk 0:03:01]}  O-O {[%clk 0:02:59]} 6. O-O {[%clk 0:03:01]}  Nc6 {[%clk 0:02:59]} 7. d4 {[%clk 0:03:01]}  cxd4 {[%clk 0:02:58]} 8. Nxd4 {[%clk 0:03:02]}  Nxd4 {[%clk 0:02:57]} 9. Qxd4 {[%clk 0:03:02]}  d6 {[%clk 0:02:57]} 10. Bg5 {[%clk 0:03:02]}  a6 {[%clk 0:02:56]} 11. Qd2 {[%clk 0:03:01]}  Rb8 {[%clk 0:02:54]} 12. Rfd1 {[%clk 0:03:01]}  Be6 {[%clk 0:02:45]} 13. b3 {[%clk 0:03:00]}  b5 {[%clk 0:02:40]} 14. cxb5 {[%clk 0:02:59]}  axb5 {[%clk 0:02:40]} 15. Rac1 {[%clk 0:02:59]}  b4 {[%clk 0:02:33]} 16. Na4 {[%clk 0:02:58]}  Qa5 {[%clk 0:02:33]} 17. h3 {[%clk 0:02:58]}  Rfc8 {[%clk 0:02:24]} 18. e4 {[%clk 0:02:43]}  Bd7 {[%clk 0:02:04]} 19. f4 {[%clk 0:02:36]}  Bxa4 {[%clk 0:01:42]} 20. bxa4 {[%clk 0:02:35]}  Qxa4 {[%clk 0:01:39]} 21. Kh2 {[%clk 0:02:35]}  Rxc1 {[%clk 0:01:26]} 22. Rxc1 {[%clk 0:02:33]}  b3 {[%clk 0:01:17]} 23. axb3 {[%clk 0:02:28]}  Qxb3 {[%clk 0:01:18]} 24. e5 {[%clk 0:02:27]}  dxe5 {[%clk 0:01:09]} 25. fxe5 {[%clk 0:02:24]}  Nh5 {[%clk 0:01:09]} 26. Rc3 {[%clk 0:02:22]}  Qe6 {[%clk 0:00:47]} 27. Qd5 {[%clk 0:01:59]}  Qxd5 {[%clk 0:00:40]} 28. Bxd5 {[%clk 0:01:57]}  Bxe5 {[%clk 0:00:40]} 29. Re3 {[%clk 0:01:32]}  Bxg3+ {[%clk 0:00:37]} 30. Kg2 {[%clk 0:01:22]}  Bf4 {[%clk 0:00:30]} 31. Rxe7 {[%clk 0:01:02]}  Bxg5 {[%clk 0:00:25]} 32. Rxf7 {[%clk 0:01:00]}  Kh8 {[%clk 0:00:21]} 33. Kf3 {[%clk 0:00:53]}  Bh6 {[%clk 0:00:16]} 34. h4 {[%clk 0:00:48]}  Rf8 {[%clk 0:00:14]} 35. Rxf8+ {[%clk 0:00:45]}  Bxf8 {[%clk 0:00:15]} 36. Bb7 {[%clk 0:00:44]}  Kg7 {[%clk 0:00:15]} 37. Kg4 {[%clk 0:00:44]}  Kf6 {[%clk 0:00:14]} 38. Bc6 {[%clk 0:00:43]}  Bb4 {[%clk 0:00:14]} 39. Bb7 {[%clk 0:00:43]}  Ng7 {[%clk 0:00:13]} 40. Bc6 {[%clk 0:00:43]}  h5+ {[%clk 0:00:12]} 41. Kh3 {[%clk 0:00:43]}  Nf5 {[%clk 0:00:12]} 42. Ba4 {[%clk 0:00:39]}  Be1 {[%clk 0:00:12]} 43. Bc2 {[%clk 0:00:39]}  Bxh4 {[%clk 0:00:11]} 44. Bb1 {[%clk 0:00:39]}  Be1 {[%clk 0:00:11]} 45. Bc2 {[%clk 0:00:39]}  g5 {[%clk 0:00:12]} 46. Kg2 {[%clk 0:00:39]}  g4 {[%clk 0:00:11]} 47. Kf1 {[%clk 0:00:40]}  Bb4 {[%clk 0:00:11]} 48. Ba4 {[%clk 0:00:39]}  Kg5 {[%clk 0:00:11]} 49. Kg2 {[%clk 0:00:37]}  h4 {[%clk 0:00:11]} 50. Kh1 {[%clk 0:00:37]}  h3 {[%clk 0:00:10]} 51. Bc6 {[%clk 0:00:37]}  Kf4 {[%clk 0:00:10]} 52. Kh2 {[%clk 0:00:37]}  Ng3 {[%clk 0:00:07]} 53. Bd7 {[%clk 0:00:36]}  Nf1+ {[%clk 0:00:07]} 54. Kh1 {[%clk 0:00:36]}  Bc5 {[%clk 0:00:05]} 55. Bxg4 {[%clk 0:00:35]}  Ng3+ {[%clk 0:00:03]} 56. Kh2 {[%clk 0:00:35]}  Nf1+ {[%clk 0:00:02]} 57. Kxh3 {[%clk 0:00:35]}  Ne3 {[%clk 0:00:02]} 58. Bc8 {[%clk 0:00:35]}  Nf5 {[%clk 0:00:02]} 59. Bxf5 {[%clk 0:00:34]} 1/2-1/2


[Site "https://www.chess.com"]

[Event "Titled Tuesday Blitz November 07 Late 2023"]
[White "Adel, Sara"]
[Black "Haitin, Ilja"]
[WhiteFideId "10616764"]
[BlackFideId "4501764"]
[WhiteElo "2190"]
[BlackElo "2441"]
[Result "1-0"]
[Round "2"]
[TimeControl "180+1"]
[Date "2023.11.07"]
[WhiteClock "0:00:33"]
[BlackClock "0:00:00"]
[Board "152"]

1. e4 {[%clk 0:02:50]}  e5 {[%clk 0:02:59]} 2. Nf3 {[%clk 0:02:50]}  Nc6 {[%clk 0:02:59]} 3. Bc4 {[%clk 0:02:39]}  d6 {[%clk 0:02:59]} 4. d4 {[%clk 0:02:39]}  Nf6 {[%clk 0:02:58]} 5. O-O {[%clk 0:02:38]}  Nxe4 {[%clk 0:02:49]} 6. dxe5 {[%clk 0:02:36]}  Be7 {[%clk 0:02:26]} 7. Re1 {[%clk 0:02:31]}  Nc5 {[%clk 0:02:10]} 8. exd6 {[%clk 0:02:22]}  Qxd6 {[%clk 0:02:11]} 9. Qe2 {[%clk 0:02:18]}  O-O {[%clk 0:02:01]} 10. Rd1 {[%clk 0:02:15]}  Qg6 {[%clk 0:01:49]} 11. Be3 {[%clk 0:02:07]}  Ne6 {[%clk 0:01:46]} 12. Bd3 {[%clk 0:02:03]}  Qh5 {[%clk 0:01:44]} 13. Nc3 {[%clk 0:02:01]}  Bd6 {[%clk 0:01:24]} 14. Ne4 {[%clk 0:01:45]}  Nf4 {[%clk 0:00:56]} 15. Bxf4 {[%clk 0:01:34]}  Bxf4 {[%clk 0:00:57]} 16. h3 {[%clk 0:01:15]}  Be6 {[%clk 0:00:47]} 17. Nfg5 {[%clk 0:01:05]}  Qxe2 {[%clk 0:00:34]} 18. Bxe2 {[%clk 0:01:05]}  Bf5 {[%clk 0:00:23]} 19. g4 {[%clk 0:00:50]}  Bg6 {[%clk 0:00:18]} 20. Rd7 {[%clk 0:00:44]}  Rad8 {[%clk 0:00:12]} 21. Rxd8 {[%clk 0:00:43]}  Rxd8 {[%clk 0:00:13]} 22. h4 {[%clk 0:00:41]}  h6 {[%clk 0:00:10]} 23. h5 {[%clk 0:00:40]}  hxg5 {[%clk 0:00:02]} 24. hxg6 {[%clk 0:00:40]}  fxg6 {[%clk 0:00:03]} 25. Bc4+ {[%clk 0:00:40]}  Kf8 {[%clk 0:00:03]} 26. Kg2 {[%clk 0:00:40]}  Ne5 {[%clk 0:00:03]} 27. Bb3 {[%clk 0:00:39]}  c6 {[%clk 0:00:04]} 28. Nc5 {[%clk 0:00:40]}  Ke7 {[%clk 0:00:03]} 29. Ne6 {[%clk 0:00:40]}  Rd2 {[%clk 0:00:03]} 30. Re1 {[%clk 0:00:36]}  Kf6 {[%clk 0:00:02]} 31. Nc5 {[%clk 0:00:34]}  a5 {[%clk 0:00:02]} 32. Ne4+ {[%clk 0:00:34]}  Ke7 {[%clk 0:00:02]} 33. Nxd2 {[%clk 0:00:35]}  Bxd2 {[%clk 0:00:02]} 34. Rd1 {[%clk 0:00:36]}  Bf4 {[%clk 0:00:02]} 35. f3 {[%clk 0:00:36]}  Kf6 {[%clk 0:00:01]} 36. Kf2 {[%clk 0:00:35]}  Ke7 {[%clk 0:00:01]} 37. Ke2 {[%clk 0:00:35]}  b5 {[%clk 0:00:02]} 38. a4 {[%clk 0:00:35]}  b4 {[%clk 0:00:02]} 39. c3 {[%clk 0:00:34]}  c5 {[%clk 0:00:02]} 40. cxb4 {[%clk 0:00:34]}  cxb4 {[%clk 0:00:02]} 41. Bc2 {[%clk 0:00:34]}  Nc6 {[%clk 0:00:02]} 42. Be4 {[%clk 0:00:34]}  Ne5 {[%clk 0:00:01]} 43. Rd5 {[%clk 0:00:33]}  Nc4 {[%clk 0:00:00]} 44. b3 {[%clk 0:00:33]} 1-0


[Site "https://www.chess.com"]

[Event "Titled Tuesday Blitz November 07 Late 2023"]
[White "Kovalevsky, Stanislav"]
[Black "Feliz Dotel, Dewar Bienvenido"]
[WhiteFideId "13508598"]
[BlackFideId "6402801"]
[WhiteElo "2435"]
[BlackElo "2167"]
[Result "1-0"]
[Round "2"]
[TimeControl "180+1"]
[Date "2023.11.07"]
[WhiteClock "0:00:52"]
[BlackClock "0:00:11"]
[Board "155"]

1. e4 {[%clk 0:03:00]}  e5 {[%clk 0:02:59]} 2. Nf3 {[%clk 0:02:59]}  Nc6 {[%clk 0:02:59]} 3. Bb5 {[%clk 0:03:00]}  Nf6 {[%clk 0:02:59]} 4. O-O {[%clk 0:02:59]}  Nxe4 {[%clk 0:02:59]} 5. Re1 {[%clk 0:02:59]}  Nd6 {[%clk 0:02:59]} 6. Bxc6 {[%clk 0:02:59]}  dxc6 {[%clk 0:02:59]} 7. Nxe5 {[%clk 0:03:00]}  Be7 {[%clk 0:02:59]} 8. d4 {[%clk 0:03:00]}  O-O {[%clk 0:02:59]} 9. Nc3 {[%clk 0:02:59]}  Bf5 {[%clk 0:02:51]} 10. Bf4 {[%clk 0:02:53]}  a5 {[%clk 0:02:47]} 11. Ne2 {[%clk 0:02:50]}  Ne4 {[%clk 0:02:37]} 12. Ng3 {[%clk 0:02:47]}  Nxg3 {[%clk 0:02:37]} 13. Bxg3 {[%clk 0:02:47]}  Bd6 {[%clk 0:02:35]} 14. c3 {[%clk 0:02:47]}  Bxe5 {[%clk 0:02:32]} 15. Rxe5 {[%clk 0:02:45]}  Be6 {[%clk 0:02:19]} 16. a3 {[%clk 0:02:43]}  a4 {[%clk 0:02:17]} 17. Qc2 {[%clk 0:02:34]}  Qf6 {[%clk 0:02:10]} 18. Rae1 {[%clk 0:02:31]}  h6 {[%clk 0:02:01]} 19. h3 {[%clk 0:02:09]}  Rfd8 {[%clk 0:01:57]} 20. R1e3 {[%clk 0:02:04]}  Rd7 {[%clk 0:01:54]} 21. Rf3 {[%clk 0:01:59]}  Qd8 {[%clk 0:01:38]} 22. Bf4 {[%clk 0:01:53]}  Rd5 {[%clk 0:01:32]} 23. Rg3 {[%clk 0:01:53]}  Rxe5 {[%clk 0:01:28]} 24. Bxe5 {[%clk 0:01:53]}  g6 {[%clk 0:01:11]} 25. Rxg6+ {[%clk 0:01:44]}  fxg6 {[%clk 0:01:11]} 26. Qxg6+ {[%clk 0:01:44]}  Kf8 {[%clk 0:01:11]} 27. Bg7+ {[%clk 0:01:41]}  Ke7 {[%clk 0:01:09]} 28. Bf6+ {[%clk 0:01:36]}  Kd7 {[%clk 0:01:10]} 29. Bxd8 {[%clk 0:01:35]}  Rxd8 {[%clk 0:01:11]} 30. Qxh6 {[%clk 0:01:35]}  Re8 {[%clk 0:01:09]} 31. f4 {[%clk 0:01:25]}  Bd5 {[%clk 0:01:08]} 32. Kf2 {[%clk 0:01:23]}  Bc4 {[%clk 0:00:58]} 33. Qg7+ {[%clk 0:01:16]}  Re7 {[%clk 0:00:56]} 34. Qg4+ {[%clk 0:01:16]}  Kd8 {[%clk 0:00:56]} 35. f5 {[%clk 0:01:16]}  b5 {[%clk 0:00:42]} 36. h4 {[%clk 0:01:12]}  Rf7 {[%clk 0:00:37]} 37. Qg5+ {[%clk 0:01:10]}  Kd7 {[%clk 0:00:35]} 38. g4 {[%clk 0:01:09]}  c5 {[%clk 0:00:34]} 39. dxc5 {[%clk 0:01:07]}  Kc6 {[%clk 0:00:35]} 40. h5 {[%clk 0:01:05]}  Kxc5 {[%clk 0:00:33]} 41. f6+ {[%clk 0:01:03]}  Kd6 {[%clk 0:00:33]} 42. Qf4+ {[%clk 0:01:01]}  Ke6 {[%clk 0:00:31]} 43. g5 {[%clk 0:01:02]}  c5 {[%clk 0:00:31]} 44. Qe4+ {[%clk 0:01:01]}  Kd6 {[%clk 0:00:31]} 45. Kg3 {[%clk 0:00:57]}  Bd5 {[%clk 0:00:26]} 46. Qf4+ {[%clk 0:00:56]}  Ke6 {[%clk 0:00:24]} 47. Kg4 {[%clk 0:00:56]}  b4 {[%clk 0:00:23]} 48. cxb4 {[%clk 0:00:55]}  cxb4 {[%clk 0:00:24]} 49. Qxb4 {[%clk 0:00:55]}  Rb7 {[%clk 0:00:21]} 50. Qe1+ {[%clk 0:00:53]}  Kf7 {[%clk 0:00:19]} 51. Kf5 {[%clk 0:00:53]}  Rb5 {[%clk 0:00:11]} 52. Qe7+ {[%clk 0:00:52]} 1-0


[Site "https://www.chess.com"]

[Event "Titled Tuesday Blitz November 07 Late 2023"]
[White "Ismayilova, Khanim"]
[Black "hristos03"]
[WhiteFideId "13429019"]
[WhiteElo "2160"]
[BlackElo "2431"]
[Result "0-1"]
[Round "2"]
[TimeControl "180+1"]
[Date "2023.11.07"]
[WhiteClock "0:00:00"]
[BlackClock "0:00:04"]
[Board "158"]

1. e4 {[%clk 0:03:00]}  c5 {[%clk 0:02:57]} 2. c3 {[%clk 0:03:00]}  d5 {[%clk 0:02:50]} 3. exd5 {[%clk 0:02:59]}  Qxd5 {[%clk 0:02:45]} 4. d4 {[%clk 0:02:58]}  g6 {[%clk 0:02:43]} 5. Na3 {[%clk 0:02:42]}  Bg7 {[%clk 0:02:32]} 6. Nf3 {[%clk 0:02:33]}  Nf6 {[%clk 0:02:28]} 7. Nb5 {[%clk 0:02:30]}  Na6 {[%clk 0:02:28]} 8. c4 {[%clk 0:02:19]}  Qe4+ {[%clk 0:02:25]} 9. Be2 {[%clk 0:02:18]}  cxd4 {[%clk 0:02:18]} 10. O-O {[%clk 0:02:01]}  O-O {[%clk 0:02:06]} 11. Nbxd4 {[%clk 0:01:58]}  b6 {[%clk 0:01:40]} 12. h3 {[%clk 0:01:49]}  Bd7 {[%clk 0:01:21]} 13. Be3 {[%clk 0:01:39]}  Rfd8 {[%clk 0:01:13]} 14. Qc1 {[%clk 0:01:27]}  Rac8 {[%clk 0:01:03]} 15. Ng5 {[%clk 0:01:06]}  Qb7 {[%clk 0:00:39]} 16. b3 {[%clk 0:00:38]}  e5 {[%clk 0:00:34]} 17. Nc2 {[%clk 0:00:35]}  h6 {[%clk 0:00:33]} 18. Nf3 {[%clk 0:00:31]}  Kh7 {[%clk 0:00:31]} 19. Nxe5 {[%clk 0:00:28]}  Ne4 {[%clk 0:00:30]} 20. Bd4 {[%clk 0:00:27]}  Be6 {[%clk 0:00:26]} 21. Qe3 {[%clk 0:00:22]}  Nd6 {[%clk 0:00:15]} 22. Bf3 {[%clk 0:00:19]}  Qc7 {[%clk 0:00:15]} 23. Bb2 {[%clk 0:00:18]}  Nf5 {[%clk 0:00:15]} 24. Qe2 {[%clk 0:00:16]}  Nc5 {[%clk 0:00:15]} 25. Rad1 {[%clk 0:00:12]}  Rxd1 {[%clk 0:00:10]} 26. Rxd1 {[%clk 0:00:12]}  Rd8 {[%clk 0:00:08]} 27. Re1 {[%clk 0:00:09]}  Re8 {[%clk 0:00:05]} 28. Nb4 {[%clk 0:00:07]}  a5 {[%clk 0:00:05]} 29. Nd5 {[%clk 0:00:08]}  Bxd5 {[%clk 0:00:05]} 30. Bxd5 {[%clk 0:00:08]}  Ne6 {[%clk 0:00:04]} 31. Qg4 {[%clk 0:00:06]}  h5 {[%clk 0:00:04]} 32. Qf3 {[%clk 0:00:04]}  Ng5 {[%clk 0:00:04]} 33. Qf4 {[%clk 0:00:03]}  Ne6 {[%clk 0:00:03]} 34. Bxe6 {[%clk 0:00:02]}  Rxe6 {[%clk 0:00:03]} 35. Qf3 {[%clk 0:00:01]}  Qe7 {[%clk 0:00:04]} 36. Qe2 {[%clk 0:00:00]}  Bxe5 {[%clk 0:00:04]} 0-1


[Site "https://www.chess.com"]

[Event "Titled Tuesday Blitz November 07 Late 2023"]
[White "Pace, Christopher"]
[Black "Tarnowska, Aleksandra"]
[WhiteFideId "2610167"]
[BlackFideId "1180967"]
[WhiteElo "2430"]
[BlackElo "2158"]
[Result "1-0"]
[Round "2"]
[TimeControl "180+1"]
[Date "2023.11.07"]
[WhiteClock "0:00:29"]
[BlackClock "0:00:00"]
[Board "159"]

1. e4 {[%clk 0:03:00]}  c5 {[%clk 0:02:58]} 2. Nf3 {[%clk 0:02:59]}  e6 {[%clk 0:02:59]} 3. d4 {[%clk 0:02:57]}  cxd4 {[%clk 0:03:00]} 4. Nxd4 {[%clk 0:02:57]}  a6 {[%clk 0:03:00]} 5. c4 {[%clk 0:02:56]}  Nf6 {[%clk 0:03:00]} 6. Bd3 {[%clk 0:02:55]}  Bb4+ {[%clk 0:02:56]} 7. Nc3 {[%clk 0:02:52]}  Qc7 {[%clk 0:02:56]} 8. Bg5 {[%clk 0:02:48]}  Qa5 {[%clk 0:02:16]} 9. Bd2 {[%clk 0:02:47]}  Nc6 {[%clk 0:01:54]} 10. Nxc6 {[%clk 0:02:44]}  dxc6 {[%clk 0:01:53]} 11. a3 {[%clk 0:02:45]}  Be7 {[%clk 0:01:42]} 12. Nd5 {[%clk 0:02:41]}  Qd8 {[%clk 0:01:39]} 13. Nxe7 {[%clk 0:02:19]}  Qxe7 {[%clk 0:01:40]} 14. e5 {[%clk 0:02:04]}  Nd7 {[%clk 0:01:34]} 15. Qe2 {[%clk 0:01:51]}  Nc5 {[%clk 0:01:16]} 16. Bc2 {[%clk 0:01:51]}  b5 {[%clk 0:01:05]} 17. O-O {[%clk 0:01:39]}  Bb7 {[%clk 0:00:39]} 18. Rac1 {[%clk 0:01:19]}  Nd7 {[%clk 0:00:30]} 19. Qg4 {[%clk 0:00:56]}  h5 {[%clk 0:00:19]} 20. Qxg7 {[%clk 0:00:55]}  O-O-O {[%clk 0:00:16]} 21. Qg5 {[%clk 0:00:51]}  Qxg5 {[%clk 0:00:05]} 22. Bxg5 {[%clk 0:00:51]}  Rdg8 {[%clk 0:00:06]} 23. Bf4 {[%clk 0:00:40]}  Rg4 {[%clk 0:00:04]} 24. g3 {[%clk 0:00:33]}  h4 {[%clk 0:00:00]} 25. f3 {[%clk 0:00:29]} 1-0


[Site "https://www.chess.com"]